Cogmind - Beta 13 @@@ ROGUE MODE // 2024.07.09 @ 22:59:30 Player: Johnny5001 Result: Destroyed by LE-HUM(R) with Subdweller Machine Gun Performance ------------- Evolutions (0) 0 Regions Visited (2) 400 Robots Destroyed (24) 120 Value Destroyed (557) 557 Prototype IDs (0) 0 Alien Tech Used (0) 0 Bonus (0) 0 TOTAL SCORE: 1077 Bonus ------- None Cogmind --------- Core Integrity 0/250 Matter 62/450 Energy 265/265 System Corruption 0% Temperature Cool (0) Movement Walking (190) Ox1 Location -10/Subcaves Parts ------- > --- POWER (1) -------- Improved Ion Engine > --- PROPULSION (2) --- Aluminum Leg Aluminum Leg > --- UTILITY (2) ------ Large Storage Unit Large Matter Pod > --- WEAPON (2) ------- Subdweller Machine Gun Grenade Launcher > --- INVENTORY (15) --- Subdweller Power Source Subdweller Power Source Medium Matter Pod (0) Subdweller Optics Makeshift Hacking Suite Subdweller Beam Cannon Autogun Subdweller Machine Gun Light Cannon Datajack Mining Claw Peak State ------------ > --- POWER ------------ Improved Ion Engine > --- PROPULSION ------- Aluminum Leg Aluminum Leg > --- UTILITY ---------- Large Storage Unit Large Matter Pod > --- WEAPON ----------- Subdweller Beam Cannon Autogun > --- INVENTORY -------- Subdweller Power Source Subdweller Power Source Medium Matter Pod Subdweller Optics Makeshift Hacking Suite Subdweller Machine Gun Subdweller Machine Gun Light Cannon Grenade Launcher Datajack Mining Claw [Rating: 11] Favorites ----------- Power Improved Ion Engine Engine Improved Ion Engine Propulsion Light Treads Treads Light Treads Leg Aluminum Leg Utility Large Matter Pod Storage Large Matter Pod Weapon Light Cannon Energy Gun Medium Laser Energy Cannon Subdweller Beam Cannon Ballistic Gun Light Assault Rifle Ballistic Cannon Light Cannon Launcher Grenade Launcher Slashing Weapon Mining Claw Build | -11 -10 -10 ------- Run | Yrd Mat Sub Slots Evolved . | . . . Power . | . . . Propulsion . | . . . Utility . | . . . Weapon . | . . . Parts Attached 39 | 1 20 18 Power 3 | . 2 1 Engine 3 | . 2 1 Core . | . . . Reactor . | . . . Propulsion 5 | . 2 3 Treads 3 | . 2 1 Leg 2 | . . 2 Wheel . | . . . Hover . | . . . Flight . | . . . Utility 5 | . 5 . Device . | . . . Storage 5 | . 5 . Processor . | . . . Hackware . | . . . Protection . | . . . Artifact . | . . . Weapon 26 | 1 11 14 Energy Gun 1 | 1 . . Energy Cannon 1 | . . 1 Ballistic Gun 4 | . 1 3 Ballistic Cannon 9 | . 4 5 Launcher 5 | . 3 2 Special Weapon . | . . . Impact Weapon . | . . . Slashing Weapon 6 | . 3 3 Piercing Weapon . | . . . Special Melee Weapon . | . . . Unidentified Prototypes . | . . . Parts Lost 7 | . 1 6 Power 2 | . 1 1 Propulsion 3 | . . 3 Utility . | . . . Weapon 2 | . . 2 Highest Loss Streak 2 | . 1 2 To Critical Strikes . | . . . Average Slot Usage (%) 99 | . 98 99 Engine 13 | . 13 14 Treads 25 | . 28 22 Leg 2 | . . 5 Storage 27 | . 26 28 Ballistic Gun 1 | . 1 1 Ballistic Cannon 19 | . 17 21 Launcher 3 | . 5 1 Slashing Weapon 3 | . 3 3 Naked Turns . | . . . Heaviest Build 38 | 13 36 38 Greatest Support 40 | 20 40 40 Greatest Overweight (x) 1 | . . 1 Average Overweight (x) . | . . . Largest Inventory Capacity 15 | 8 15 15 Average Capacity 12 | 8 10 15 Most Carried 15 | 6 10 15 Average Carried 10 | 6 8 12 Final Capacity 15 | 8 15 15 Final Carried 11 | 6 10 11 Class Distribution -------------------- 100% | Mutant Dominant Class ---------------- Mutant | -10/Materials Mutant | -10/Subcaves Resources | -11 -10 -10 ----------- Run | Yrd Mat Sub Matter Collected 962 | 210 422 330 Remotely . | . . . Salvage Created 405 | . 218 187 Parts 36 | . 18 18 Haulers Intercepted 1 | . 1 . Recyclers Shooed . | . . . Parts Field Recycled . | . . . Retrieved Matter . | . . . Parts Self-Destructed 7 | . . 7 Prevented . | . . . Kills | -11 -10 -10 ------- Run | Yrd Mat Sub Combat Hostiles Destroyed 19 | . 9 10 Guns 2 | . 2 . Cannons 16 | . 6 10 AOE 1 | . 1 . Classes Destroyed 6 | . 5 1 Worker 1 | . 1 . Hauler 1 | . 1 . Watcher 3 | . 3 . Swarmer 8 | . 5 3 Grunt 4 | . 4 . Subdweller 7 | . . 7 Best Kill Streak 4 | . 4 3 Combat Bots Only 3 | . 3 3 Max Kills in Single Turn 1 | . 1 1 Gunslinging . | . . . Exploded 1 | . 1 . Melee . | . . . Uniques/NPCs Destroyed . | . . . Combat | -11 -10 -10 -------- Run | Yrd Mat Sub Hostile Shots Fired 99 | . 34 65 Missed 23 | . 7 16 Damage Taken 1449 | . 250 1199 Core 265 | . 29 236 Absorbed by Shields . | . . . Core Remaining (%) 100 | 100 . . Volleys Fired 77 | . 31 46 Largest 2 | . 2 2 Hottest 70 | . 70 70 Shots Fired 142 | . 54 88 Gun 20 | . 11 9 Cannon 115 | . 40 75 Launcher 7 | . 3 4 Special . | . . . Kinetic 127 | . 43 84 Thermal 8 | . 8 . Explosive 7 | . 3 4 Electromagnetic . | . . . Robot Hit Streak 10 | . 6 10 Robot Miss Streak 4 | . 4 3 Penetration Max . | . . . Secondary Targets . | . . . Shots Hit Robots 99 | . 39 60 Core Hits 32 | . 13 19 Critical Kills . | . . . Critical Parts Destroyed . | . . . Critical Strikes 3 | . 2 1 Blast 3 | . 2 1 Melee Attacks 27 | . 13 14 Impact . | . . . Slashing 27 | . 13 14 Piercing . | . . . Sneak Attacks 2 | . 2 . Combat Hostiles . | . . . Follow-up Attacks . | . . . Damage Inflicted 1894 | . 1006 888 Guns 119 | . 51 68 Cannons 1257 | . 476 781 Explosions 233 | . 194 39 Melee 285 | . 285 . Ramming . | . . . Kinetic 1325 | . 476 849 Thermal 51 | . 51 . Explosive 233 | . 194 39 Electromagnetic . | . . . Impact . | . . . Slashing 285 | . 285 . Piercing . | . . . Highest Corruption . | . . . Average Corruption . | . . . Corruption Purged . | . . . Corruption Blocked . | . . . Overload Shots . | . . . Overflow Damage 62 | . 62 . Projectiles 1 | . 1 . Explosions 7 | . 7 . Melee 54 | . 54 . Knockbacks 14 | . 7 7 Impact . | . . . Kinetic 12 | . 5 7 Secondary 2 | . 2 . Self-Inflicted Damage 3 | . . 3 Shots 1 | . . 1 Rammed . | . . . Targets Rammed . | . . . Kicked . | . . . Crushed . | . . . Highest Temperature 153 | . 153 . Average Temperature 39 | . 39 . Received Heat Transfer 345 | . 72 273 Siege Activations . | . . . Robots Corrupted . | . . . Combat Hostiles . | . . . Parts Fried . | . . . Impact Corruptions . | . . . Robots Melted . | . . . Combat Hostiles . | . . . Parts Melted 1 | . . 1 Heat Transferred 148 | . 148 . Parts Sabotaged . | . . . Parts Stolen . | . . . Parts Stripped . | . . . Power Chain Reactions . | . . . Alert | -11 -10 -10 ------- Run | Yrd Mat Sub Peak Influence 261 | . 261 . Initial . | . . . Average 154 | . 154 . Maximum Alert Level 1 | . 1 . Low Security (%) 69 | 100 69 . Level 1 30 | . 30 . Level 2 . | . . . Level 3 . | . . . Level 4 . | . . . Level 5 . | . . . High Security . | . . . Max Security . | . . . Squads Dispatched 1 | . 1 . Investigation . | . . . Extermination . | . . . Reinforcement 1 | . 1 . Assault . | . . . Garrison . | . . . Intercept . | . . . Searches Triggered . | . . . Construction Impeded . | . . . Haulers Reinforced . | . . . Active Scanning Responses . | . . . Cargo Convoy Interrupts . | . . . Stealth | -11 -10 -10 --------- Run | Yrd Mat Sub Distress Signals 4 | . 4 . Communications Jammed . | . . . Distress Signals . | . . . Times Spotted 30 | . 18 12 Peak Tracking Total 6 | . 6 3 Tactical Retreats 3 | . 3 . Traps | -11 -10 -10 ------- Run | Yrd Mat Sub Traps Triggered . | . . . Indirectly . | . . . Trap Hack Attempts . | . . . Triggered . | . . . Disarmed . | . . . Reprogrammed . | . . . Reused 1 | . . 1 Traps Extracted . | . . . Installed 1 | . . 1 Triggered . | . . . Most Traps Carried 1 | . . 1 Machines | -11 -10 -10 ---------- Run | Yrd Mat Sub Machines Disabled 2 | . 2 . Max in Single Turn 1 | . 1 . Machines Repaired . | . . . Machines Dismantled . | . . . Machines Sabotaged . | . . . Overloaded Fab Kills . | . . . Hacking | -11 -10 -10 --------- Run | Yrd Mat Sub Machines Accessed 4 | . 4 . Terminals 4 | . 4 . Fabricators . | . . . Repair Stations . | . . . Recycling Units . | . . . Scanalyzers . | . . . Garrison Access . | . . . Total Hacks 17 | . 17 . Successful 7 | . 7 . Failed 10 | . 10 . Catastrophic 1 | . 1 . Database Lockouts . | . . . Manual 11 | . 11 . Terminals 17 | . 17 . Fabricators . | . . . Repair Stations . | . . . Recycling Units . | . . . Scanalyzers . | . . . Garrison Access . | . . . Terminal Hacks 5 | . 5 . Robot Schematic 1 | . 1 . Locate Traps 2 | . 2 . Patrol Status 1 | . 1 . Zone Layout 1 | . 1 . Fabricator Hacks . | . . . Repair Station Hacks . | . . . Recycling Unit Hacks . | . . . Scanalyzer . | . . . Garrison Access Hacks . | . . . Unauthorized Hacks 2 | . 2 . Terminals 2 | . 2 . Botnet 2 | . 2 . Fabricators . | . . . Repair Stations . | . . . Recycling Units . | . . . Scanalyzers . | . . . Garrison Access . | . . . Data Cores Recovered . | . . . Used . | . . . Hacking Detections 4 | . 4 . Full Trace Events . | . . . Feedback Events . | . . . Feedback Blocked . | . . . Robot Schematics Acquired 1 | . 1 . Robots Built . | . . . Authchips . | . . . Time . | . . . Total Robot Build Rating . | . . . Part Schematics Acquired . | . . . Parts Built . | . . . Authchips . | . . . Time . | . . . Total Part Build Rating . | . . . Parts Repaired . | . . . Time . | . . . Parts Recycled . | . . . Recycled Matter . | . . . Retrieved Matter . | . . . Retrieved Components . | . . . Parts Scanalyzed . | . . . Part Schematics Acquired . | . . . Parts Damaged . | . . . Bothacking | -11 -10 -10 ------------ Run | Yrd Mat Sub Used RIF Installer . | . . . Robots Hacked . | . . . Non-combat . | . . . Combat . | . . . Robot Hacks Applied . | . . . Relay Couplers Released . | . . . Fabnet Peak Effective % . | . . . Robots Rewired . | . . . Allies Hacked . | . . . Hacks Repelled . | . . . Allies | -11 -10 -10 -------- Run | Yrd Mat Sub Total Allies . | . . . Largest Group . | . . . Highest-Rated Group . | . . . Highest-Rated Ally . | . . . Total Orders . | . . . Ally Attacks . | . . . Total Damage . | . . . Kills . | . . . Allies Corrupted . | . . . Allies Melted . | . . . Intel | -11 -10 -10 ------- Run | Yrd Mat Sub Robot Analysis Total . | . . . Derelict Logs Recovered . | . . . Drone Launches . | . . . Drone Recoveries . | . . . Exploration | -11 -10 -10 ------------- Run | Yrd Mat Sub Turns Passed 3239 | 9 1659 1571 Spaces Moved 1342 | 7 628 707 Core . | . . . Treads 1278 | . 628 650 Legs 64 | 7 . 57 Wheels . | . . . Hover . | . . . Flight . | . . . Fastest Speed 120 | 120 160 160 Average Speed 166 | 120 160 172 Slowest Speed 240 | 120 160 240 Overloaded Moves . | . . . Propulsion Burnouts . | . . . Robots Hopped . | . . . Cave-ins Triggered . | . . . Exploration Rate (%) 40 | 2 76 44 Regions Visited 2 Branch Regions 1 Pre-discovered Areas . | . . . Known Exits Taken . | . . . Unknown Exits Taken 2 | 1 1 . Scrap Searched 1 | . . 1 Spaces Dug 17 | . 7 10 Terrain Destroyed 39 | . 13 26 Melee . | . . . Projectile . | . . . AOE 39 | . 13 26 Terrain Rammed . | . . . Walls Destroyed . | . . . Machines Disabled . | . . . Actions | -11 -10 -10 --------- Run | Yrd Mat Sub Total 2151 | 7 1205 939 Wait 629 | . 487 142 Move 1340 | 6 627 707 Hop . | . . . Pick Up 21 | . 13 8 Fast Attach 3 | . 2 1 Attach 8 | . 2 6 Detach 1 | . . 1 Swap 28 | 1 16 11 Drop 16 | . 14 2 Fire 77 | . 31 46 Melee 27 | . 13 14 Ram . | . . . Kick . | . . . Crush . | . . . Escape Stasis . | . . . Rewire . | . . . Trap 1 | . . 1 Miscellaneous . | . . . Route ------- -11/Scrapyard -10/Materials (discovered 4 exits: [*Mat x2] / [*Min] / [*Sub]) -10/Subcaves (discovered 1 exit: [*Mat]) History --------- Turn | Location | Event 3 | -11/Scrapyard | Discovered new exit (range 3) 10 | -11/Scrapyard | Entered Materials 266 | -10/Materials | Discovered new exit (range 14) 307 | -10/Materials | Build established: Mutant 365 | -10/Materials | Discovered new exit (range 16) 1072 | -10/Materials | Discovered new exit (range 5) 1573 | -10/Materials | Discovered new exit (range 16) 1669 | -10/Materials | Entered Subcaves 2154 | -10/Subcaves | Shifting Twisted Machinery released Mak. Hacking Suite 2180 | -10/Subcaves | Shifting Twisted Machinery released Flamer 2316 | -10/Subcaves | Discovered new exit (range 7) 3079 | -10/Subcaves | Core integrity fell below 50% 3097 | -10/Subcaves | Core integrity fell below 20% 3240 | -10/Subcaves | Destroyed by LE-HUM(R) with Subdweller Machine Gun Last Messages --------------- 03046_ 3R-JMH(R) destroyed. 03058_ Acquired 12 matter. 03061_ Acquired 5 matter. 03063_ Acquired 4 matter. 03076_ GZ-II1(R) affixes Scrap Shield Fragment to Scrap Shield. 03080_ Lgt. Cannon destroyed. 03082_ GZ-II1(R) knocked back. 03092_ Lgt. Treads destroyed. 03101_ GZ-II1(R) suffers critical hit (Blast). 03101_ Sub. Monowheel melted. 03101_ GZ-II1(R) destroyed. 03106_ Acquired 24 matter. 03110_ Subatomizers dissect the Sub. Beam Cannon. 03110_ Acquired Sub. Beam Cannon. 03113_ Acquired 1 matter. 03115_ Acquired 5 matter. 03121_ Acquired 10 matter. 03186_ The unstable cave ceiling collapses. Map ----- +----------------------------------------------------+ | ?????????????????????????^ ?? "??????????????????? | | ????????????????????????? ? "??????????????????? | | ?????????????????????????? "" ??????????????????? | | ????????????????????????## #" ##????????????????? | | ????????????????????????# "" ##???????????????? | | ?????????????????????????# #???????????????? | | ?????????????????????????# "# #?##????????????? | | ????????????????????? ###"" ## ??#?????????? | | ?????????????????????? "" """ ""#?????????? | | ?????????????????????? """ """#? "#?????????? | | ???????????????????? ?"" ## "#? ""#??????????? | | ???????????????????? """ ## ###" #??????????? | | ?????????????????? " " # ""##?????????? | | ????????????????? "" """"#?????????? | | ????????????????? " ## "" ##????????? | | ????????????????? ##"#### ##???????? | | ?????????????????? ## ?##??# ##??????? | | ????????????????????## ??????# "#??????? | | ?????????????????????# ?????## """"#??????? | | ?????????????????????# ?????# """"#??????? | | ?????????????????###?# R ##???## """##??????? | | ????????????????## ## #???# "###?####### | | ????????????????# ##??## #??## # | | ????????? ### ###?##"" "#### | | ??????? # ####"## "##"" | | ??????? @# #?# "##"" | | ??????? ## ## ### ###" | | ?????????????????# # ## ### | | ?????????????????## ###### # ## #" | | ??????????????????##?????####### """ | | ???????????????????????????????# | | ??????????????????????????????# ## ## " | | ??????????????????????????????#################### | | ?????????????????????????????????????????????????# | | ?????????????????????????????????????????????????# | | ?????????????????????????????????????????????????? | | ?????????????????????????????????????????????????? | | ?????????????????????????????????????????????????? | | ?????????????????????????????????????????????????? | | ?????????????????????????????????????????????????? | | ?????????????????????????????????????????????????? | | ?????????????????????????????????????????????????? | | ?????????????????????????????????????????????????? | | ?????????????????????????????????????????????????? | | ?????????????###?????????????????????????????????? | | ??############ ###???????????????????????????????? | | ### && #???????????????????????????????? | | ## ### ! #???????????????????????????????? | | ##?### #???????????????????????????????? | | #####????# #???????????????????????????????? | +----------------------------------------------------+ Best States ------------- Heat Dissipation 25 Energy Generation 12 Energy Capacity 265 Matter Stores 382 Matter Capacity 450 Sight Range 16 Terrain Scan Density 10 Evasion (%) 50 Recoil Reduction 2 Item Schematics ----------------- None Robot Schematics ------------------ S-10 Pest | -10/Materials | Hacked Fabricated ------------ Nothing Alien Tech Used ----------------- None Achievements -------------- None Challenges ------------ None Game ------ Seed AntimissilePulseComputer Manual? 0 Play Time 00:29:37 Cumulative 48.2 hours Start 2024.07.09 @ 22:32:10 End 2024.07.09 @ 22:59:30 Sessions 1 Manual Loads 0 Difficulty Rogue Special Mode None Game No. 33 Rogue 33 Adventurer 0 Explorer 0 Win Type - Total 4 Types 3/0/0/1/0/0/0/0/0 Lore% 42 Gallery% 45 Achievement% 42 Wizard Run 0 Options --------- Layout 1 ASCII 0 Keyboard 0 Movement Mouse Keybinds 0 Fullscreen 1 Font 24/Smallcaps Map View 50x35 Zoom Use 0% Tactical HUD 1 Map Filters NONE Filters NONE Steam 0 RUN: 600913f8-a39d-4d1d-8660-f355980a3d7a